fUST/lending_fUST_20240926
["ID","MTS","AMOUNT","RATE_DAILY","PERIOD"]
[339217039,1727355040305,-156.30471802,0.00015912,2]
[339217040,1727355040315,-1356.65853,0.00015939,2]
[339217041,1727355040324,-1138.37325129,0.00015947,2]
[339217042,1727355040333,-174.950605,0.0001595,2]
[339217043,1727355040345,-174.950605,0.0001595,2]
[339217044,1727355040354,-400.0,0.0001595,2]
[339217045,1727355040363,-999.99999901,0.0001598,2]
[339217046,1727355040372,-174.950605,0.00015999,2]
[339217047,1727355040381,-174.950605,0.00015999,2]
[339217048,1727355040390,-174.950605,0.00015999,2]
[339217049,1727355040399,-174.950605,0.00015999,2]
[339217050,1727355040409,-174.950605,0.00016,2]
[339217051,1727355040419,-174.950605,0.00016,2]
[339217052,1727355040428,-174.950605,0.00016,2]
[339217053,1727355040437,-174.950605,0.00016,2]
[339217054,1727355040447,-3000.0,0.00016,2]
[339217055,1727355040456,-174.950605,0.0001601,2]
[339217056,1727355040465,-174.950605,0.0001601,2]
[339217057,1727355040474,-3000.0,0.0001601,2]
[339217058,1727355040483,-500.0,0.00016011,2]
[339217059,1727355040493,-445.2959304,0.00016011,2]
[339217060,1727355040502,-205.92799817,0.00016011,2]
[339217061,1727355040512,-500.0,0.00016011,2]
[339217062,1727355040522,-500.0,0.00016011,2]
[339217063,1727355040532,-500.0,0.00016011,2]
[339217064,1727355040541,-500.0,0.00016011,2]
[339217065,1727355040552,-500.0,0.00016011,2]
[339217066,1727355040561,-500.0,0.00016011,2]
[339217067,1727355040570,-500.0,0.00016011,2]
[339217068,1727355040579,-347.41680406,0.00016011,2]
[339217069,1727355040593,-500.0,0.00016011,2]
[339217070,1727355040602,-500.0,0.00016011,2]
[339217071,1727355040612,-500.0,0.00016011,2]
[339217072,1727355040622,-500.0,0.00016011,2]
[339217073,1727355040631,-525.61755241,0.00016011,2]
[339217074,1727355040640,-151.0,0.00016013,2]
[339217075,1727355040649,-151.0,0.00016013,2]
[339217076,1727355040658,-151.0,0.00016013,2]
[339217077,1727355040667,-151.0,0.00016013,2]
[339217078,1727355040676,-151.0,0.00016013,2]
[339217079,1727355040685,-151.0,0.00016014,2]
[339217080,1727355040694,-151.0,0.00016014,2]
[339217081,1727355040703,-237.281124,0.00016014,2]
[339217082,1727355040712,-151.0,0.00016015,2]
[339217083,1727355040721,-170.41044,0.00016015,2]
[339217084,1727355040730,-170.41044,0.00016015,2]
[339217085,1727355040740,-151.0,0.00016016,2]
[339217086,1727355040749,-151.0,0.00016017,2]
[339217087,1727355040758,-151.0,0.00016017,2]
[339217088,1727355040767,-151.0,0.00016017,2]
[339217089,1727355040775,-151.0,0.00016018,2]
[339217090,1727355040785,-151.0,0.00016019,2]
[339217091,1727355040794,-174.950605,0.0001602,2]
[339217092,1727355040803,-174.950605,0.0001602,2]
[339217093,1727355040812,-151.0,0.0001602,2]
[339217094,1727355040822,-154.244663,0.0001602,2]
[339217095,1727355040831,-151.0,0.0001602,2]
[339217096,1727355040841,-152.731474,0.0001602,2]
[339217097,1727355040850,-151.0,0.0001602,2]
[339217098,1727355040859,-3000.0,0.0001602,2]
[339217099,1727355040869,-151.0,0.0001602,2]
[339217100,1727355040878,-151.0,0.0001602,2]
[339217101,1727355040887,-170.41044,0.0001602,2]
[339217102,1727355040896,-170.41044,0.0001602,2]
[339217103,1727355040906,-151.0,0.0001602,2]
[339217104,1727355040915,-151.0,0.0001602,2]
[339217105,1727355040925,-237.281124,0.0001602,2]
[339217106,1727355040936,-151.0,0.0001602,2]
[339217107,1727355040945,-151.0,0.0001602,2]
[339217108,1727355040953,-151.0,0.0001602,2]
[339217109,1727355040962,-213.013136,0.0001602,2]
[339217110,1727355040972,-3932.011785,0.0001603,2]
[339217111,1727355040982,-151.0,0.00016068,2]
[339217112,1727355040991,-600.0,0.00016068,2]
[339217113,1727355041000,-339.436071,0.000161,6]
[339217114,1727355041009,-237.281124,0.000161,2]
[339217115,1727355041018,-151.0,0.00016116,2]
[339217116,1727355041028,-151.0,0.00016116,2]
[339217117,1727355041037,-420.0,0.00016116,2]
[339217118,1727355041046,-151.0,0.00016136,2]
[339217119,1727355041055,-170.41044,0.00016136,2]
[339217120,1727355041065,-170.41044,0.00016136,2]
[339217121,1727355041074,-1356.65853,0.00016136,2]
[339217122,1727355041083,-500.0,0.00016164,2]
[339217123,1727355041096,-174.950605,0.00016199,2]
[339217124,1727355041106,-174.950605,0.00016199,2]
[339217125,1727355041115,-800.11,0.000162,2]
[339217126,1727355041124,-174.950605,0.00016227,2]
[339217127,1727355041133,-174.950611,0.00016227,2]
[339217128,1727355041142,-164.834078,0.00016227,2]
[339217129,1727355041151,-151.0,0.00016227,2]
[339217130,1727355041160,-151.0,0.00016285,2]
[339217131,1727355041169,-151.0,0.00016285,2]
[339217132,1727355041179,-170.41044,0.00016285,2]
[339217133,1727355041189,-170.41044,0.00016285,2]
[339217134,1727355041209,-380.94194,0.00016285,2]
[339217135,1727355041219,-237.281124,0.00016285,2]
[339217136,1727355041228,-151.0,0.00016285,2]
[339217137,1727355041237,-151.0,0.00016285,2]
[339217138,1727355041247,-300.133,0.00016285,2]
[339217139,1727355041256,-3204.998,0.00016285,2]
[339217140,1727355041266,-1356.65853,0.00016333,2]
[339217141,1727355041275,-151.0,0.00016333,2]
[339217142,1727355041284,-160.0,0.00016412,3]
[339217143,1727355041294,-194.31780245,0.00016412,5]
[339217144,1727355041304,-400.0,0.0001649,2]
[339217145,1727355041313,-1356.65853,0.0001653,2]
[339217146,1727355041322,-151.0,0.0001653,2]
[339217147,1727355041332,-237.281124,0.0001653,2]
[339217148,1727355041344,-196.253529,0.0001653,2]
[339217149,1727355041354,-151.0,0.0001653,2]
[339217150,1727355041363,-4869.54305049,0.00016552,2]
[339217151,1727355041373,-151.0,0.00016598,2]
[339217152,1727355041382,-170.41044,0.00016598,2]
[339217153,1727355041392,-170.41044,0.00016598,2]
[339217154,1727355041401,-380.94194,0.00016598,2]
[339217155,1727355041410,-151.0,0.00016606,2]
[339217156,1727355041419,-237.281124,0.00016638,2]
[339217157,1727355041429,-237.281124,0.00016638,2]
[339217158,1727355041439,-156.30471801,0.00016722,2]
[339217159,1727355041448,-238.63439174,0.00016722,2]
[339217160,1727355041458,-152.71530022,0.00016733,2]
[339217161,1727355041467,-864.15858988,0.00016733,2]
[339217162,1727355041477,-151.0,0.00016733,2]
[339217163,1727355041487,-151.0,0.00016733,2]
[339217164,1727355041496,-1134.4634951,0.00016742,2]
[339217165,1727355041507,-366.67751789,0.00016743,2]
[339217166,1727355041517,-150.0,0.00016802,2]
[339217167,1727355041526,-1295.32194,0.00016805,2]
[339217168,1727355041535,-170.9168,0.00016805,2]
[339217169,1727355041545,-170.41044,0.00016805,2]
[339217170,1727355041554,-170.41044,0.00016805,2]
[339217171,1727355041565,-380.94194,0.00016805,2]
[339217172,1727355041575,-500.0,0.00016821,2]
[339217173,1727355041585,-282.50132842,0.00016821,2]
[339217174,1727355041599,-9977.71707438,0.00016822,2]
[339217175,1727355041608,-9250.92195666,0.00016822,2]
[339217176,1727355041624,-6983.38582156,0.00016822,2]
[339217177,1727355041635,-29803.31928396,0.00016822,2]
[339217178,1727355041649,-9266.49168682,0.00016822,2]
[339217206,1727355043575,-129.96599588,0.00016822,2]
[339217220,1727356033131,-899.8016116,0.0001551,2]
[339217221,1727356033155,-166.666666,0.00015511,2]
[339217222,1727356033177,-250.0,0.00015714,2]
[339217223,1727356033199,-254.93310947,0.00015788,2]
[339217224,1727356033222,-166.666666,0.00015934,2]
[339217225,1727356033249,-500.0,0.00016,2]
[339217226,1727356033271,-150.0,0.00016,2]
[339217227,1727356033293,-500.0,0.00016164,2]
[339217228,1727356033316,-720.1,0.000162,2]
[339217229,1727356033338,-166.666666,0.00016357,2]
[339217230,1727356033359,-4869.54305049,0.00016476,2]
[339217231,1727356033380,-166.666666,0.0001678,2]
[339217232,1727356033403,-300.0,0.00016815,2]
[339217233,1727356033428,-300.0,0.00016816,2]
[339217234,1727356033449,-720.13215823,0.00016821,2]
[339217235,1727356033470,-1082.32604429,0.0001694,2]
[339217236,1727356033491,-11455.59827732,0.00017,2]
[339217237,1727356033513,-1000.0,0.00017,17]
[339217238,1727356033535,-275.0,0.00017,7]
[339217239,1727356033556,-5861.8,0.00017,2]
[339217240,1727356033577,-1295.32194,0.00017015,2]
[339217241,1727356033599,-400.0,0.0001704,2]
[339217242,1727356033621,-236.1948853,0.00017068,2]
[339217243,1727356033641,-166.666666,0.00017203,2]
[339217244,1727356033664,-1295.32194,0.00017225,2]
[339217245,1727356033685,-443.3507257,0.00017381,2]
[339217246,1727356033708,-411.950204,0.00017381,2]
[339217247,1727356033730,-411.950204,0.00017381,2]
[339217248,1727356033752,-823.985691,0.00017381,2]
[339217249,1727356033773,-823.563414,0.00017381,2]
[339217250,1727356033796,-336.17972805,0.00017423,2]
[339217251,1727356033817,-151.0,0.00017424,2]
[339217252,1727356033838,-151.0,0.00017424,2]
[339217253,1727356033860,-342.847746,0.00017424,2]
[339217254,1727356033881,-342.847746,0.00017424,2]
[339217255,1727356033905,-342.847746,0.00017424,2]
[339217256,1727356033927,-342.847746,0.00017424,2]
[339217257,1727356033949,-151.0,0.00017424,2]
[339217258,1727356033972,-151.0,0.00017424,2]
[339217259,1727356033994,-151.0,0.00017424,2]
[339217260,1727356034016,-194.1044,0.00017424,2]
[339217261,1727356034038,-151.0,0.00017424,2]
[339217262,1727356034060,-151.0,0.00017424,2]
[339217263,1727356034081,-154.23273,0.00017424,2]
[339217264,1727356034103,-154.23273,0.00017424,2]
[339217265,1727356034125,-154.23273,0.00017424,2]
[339217266,1727356034147,-154.23273,0.00017424,2]
[339217267,1727356034169,-154.23273,0.00017424,2]
[339217268,1727356034192,-154.23273,0.00017424,2]
[339217269,1727356034212,-1295.32194,0.00017435,2]
[339217270,1727356034234,-1041.86404972,0.00017443,2]
[339217271,1727356034257,-170.9168,0.00017472,2]
[339217272,1727356034279,-501.50871244,0.00017473,2]
[339217273,1727356034300,-400.0,0.0001759,2]
[339217274,1727356034322,-2001.85961693,0.000176,2]
[339217275,1727356034343,-166.666666,0.00017625,2]
[339217276,1727356034364,-151.0,0.00017645,2]
[339217277,1727356034385,-342.847746,0.00017645,2]
[339217278,1727356034407,-342.847746,0.00017645,2]
[339217279,1727356034439,-250.684656,0.00017645,2]
[339217280,1727356034465,-1295.32194,0.00017645,2]
[339217281,1727356034487,-655.61088456,0.00017751,2]
[339217282,1727356034519,-151.0,0.00017751,2]
[339217283,1727356034540,-154.23273,0.00017751,2]
[339217284,1727356034561,-154.23273,0.00017751,2]
[339217285,1727356034582,-165.225,0.00017961,2]
[339217286,1727356034604,-342.847746,0.00017961,2]
[339217287,1727356034625,-342.847746,0.00017961,2]
[339217288,1727356034646,-151.0,0.00017961,2]
[339217289,1727356034667,-154.23273,0.00017961,2]
[339217290,1727356034689,-154.23273,0.00017961,2]
[339217291,1727356034710,-500.0,0.00017973,2]
[339217292,1727356034732,-500.0,0.00017973,2]
[339217293,1727356034944,-8369.96834422,0.00018,2]
[339217294,1727356034971,-342.847746,0.00018,2]
[339217295,1727356034995,-342.847746,0.00018,2]
[339217296,1727356035026,-151.0,0.00018,2]
[339217297,1727356035053,-154.23273,0.00018,2]
[339217298,1727356035076,-154.23273,0.00018,2]
[339217299,1727356035099,-500.0,0.0001801,2]
[339217300,1727356035121,-282.50132842,0.0001801,2]
[339217301,1727356035144,-151.0,0.0001801,2]
[339217302,1727356035165,-164.315641,0.0001801,2]
[339217303,1727356035189,-61892.54315635,0.00018011,2]
[339217304,1727356050194,-600.11013186,0.00016821,2]
[339217305,1727356050216,-600.11013186,0.0001801,2]
[339217306,1727356050237,-1387.34748245,0.00018011,2]
[339217307,1727356050260,-23608.0900902,0.00018011,2]
[339217334,1727356232506,-325.31335205,0.00016164,2]
[339217335,1727356232519,-174.68664795,0.00016164,2]
[339217336,1727356232528,-225.23325406,0.000162,2]
[339217426,1727356240622,-422.85674594,0.000162,2]
[339217428,1727356240632,-400.07342124,0.0001801,2]
[339217430,1727356240641,-2087.69848131,0.00018246,2]
[339217455,1727356243544,-71.12926738,0.00018246,2]
[339217456,1727356243555,-641.09320249,0.00018315,2]
[339217457,1727356243565,-1673.29,0.000184,6]
[339217458,1727356243574,-5346.09812367,0.00018447,2]
[339217460,1727356247221,-10695.37669105,0.00018447,2]
[339217461,1727356247231,-549.04192041,0.00018521,2]
[339217462,1727356247240,-687.54316664,0.00018521,2]
[339217463,1727356247250,-947.03528878,0.000186,2]
[339217464,1727356247259,-2947.80026766,0.0001861,10]
[339217502,1727357133140,-259.064388,0.00015742,2]
[339217503,1727357133163,-144.942963,0.00015939,2]
[339217514,1727357241148,-158.1263908,0.00015598,2]
[339217515,1727357254109,-976.3371043,0.00015598,2]
[339217516,1727357254133,-5000.0,0.0001585,2]
[339217517,1727357254156,-114.121425,0.00015939,2]
[339217518,1727357254179,-259.064388,0.00016136,2]
[339217519,1727357254202,-500.0,0.00016164,2]
[339217520,1727357254224,-583.28,0.000162,2]
[339217521,1727357254247,-259.064388,0.00016333,2]
[339217522,1727357254273,-591.703,0.00016441,2]
[339217523,1727357254295,-259.064388,0.0001653,2]
[339217524,1727357254321,-163.428858,0.00017028,2]
[339217525,1727357254345,-166.666666,0.00017231,2]
[339217526,1727357254369,-160.0,0.00017345,5]
[339217527,1727357254391,-238.59379,0.00017362,2]
[339217528,1727357254412,-150.0,0.00017586,2]
[339217529,1727357254435,-166.666666,0.00017701,2]
[339217530,1727357254459,-160.8714376,0.00017856,2]
[339217531,1727357254480,-400.0,0.00018,2]
[339217532,1727357254502,-166.666666,0.0001817,2]
[339217533,1727357254523,-2158.82774869,0.00018246,2]
[339217534,1727357254545,-1945.645237,0.000185,2]
[339217535,1727357254568,-477.42094934,0.00018599,2]
[339217536,1727357254594,-300.0,0.00018609,2]
[339217537,1727357254619,-3768.64302405,0.0001861,10]
[339217538,1727357254642,-166.666666,0.0001864,2]
[339217539,1727357254664,-500.9531289,0.00018701,2]
[339217540,1727357254684,-156.30471801,0.000189,2]
[339217541,1727357254705,-159.0895945,0.000189,2]
[339217542,1727357254727,-482.0118288,0.00018904,2]
[339217543,1727357254748,-1030.56841598,0.00018904,2]
[339217544,1727357254769,-159.0895945,0.00018965,2]
[339217545,1727357254792,-500.0,0.00018999,2]
[339217546,1727357254813,-500.0,0.00018999,2]
[339217547,1727357254836,-500.0,0.00018999,2]
[339217548,1727357254862,-255.89587497,0.00018999,2]
[339217549,1727357254884,-500.0,0.00018999,2]
[339217550,1727357254907,-2000.0,0.00019,2]
[339217551,1727357254929,-788.87910637,0.00019,30]
[339217552,1727357254951,-5500.0,0.00019,2]
[339217553,1727357254972,-2666.69120001,0.00019,30]
[339217556,1727357315531,45909.09754201,0.00021,60]
[339217589,1727357431702,-477.46748131,0.000162,2]
[339217629,1727357437897,-47.49251869,0.000162,2]
[339217630,1727357437906,-1215.4548922,0.000167,2]
[339217631,1727357437916,-2158.82774869,0.00018414,2]
[339217632,1727357437925,-397.85079112,0.00018999,2]
[339217633,1727357437934,-242.41144347,0.00019,30]
[339217637,1727357439636,-6190.93755843,0.00019,30]
[339217638,1727357439646,-249.06244156,0.00019,2]
[339217664,1727357445756,-354.21617661,0.00019,2]
[339217666,1727357446291,-16890.33334876,0.00019,2]
[339217667,1727357446301,-1000.0,0.00019,19]
[339217668,1727357446313,-152.68017911,0.00019,2]
[339217669,1727357446323,-152.71530022,0.00019019,2]
[339217670,1727357446335,-231.41,0.00019052,3]
[339217671,1727357446345,-694.28,0.00019052,3]
[339217672,1727357446355,-5815.66946525,0.0001906,3]
[339217722,1727358342190,-432.54152343,0.000162,2]
[339217725,1727358427121,-39.91847657,0.000162,2]
[339217726,1727358427143,-166.666666,0.0001723,2]
[339217727,1727358427164,-200.503085,0.00017471,2]
[339217728,1727358427192,-196.9051336,0.00017535,2]
[339217729,1727358427213,-2500.0,0.00017654,2]
[339217730,1727358427233,-166.666666,0.000177,2]
[339217731,1727358427254,-2000.0,0.00018,2]
[339217732,1727358427276,-166.666666,0.0001817,2]
[339217733,1727358427296,-166.666666,0.00018639,2]
[339217734,1727358427317,-2158.82774869,0.0001881,2]
[339217735,1727358427337,-828.65587763,0.000189,2]
[339217736,1727358427358,-1718.27269006,0.00018988,2]
[339217737,1727358427378,-300.0,0.00018999,2]
[339217738,1727358427401,-25182.78381373,0.00019,2]
[339217739,1727358427421,-5000.0,0.00019,3]
[339217740,1727358427445,-3000.0,0.00019,2]
[339217741,1727358427466,-152.68017911,0.00019,2]
[339217742,1727358427487,-1000.0,0.00019,2]
[339217743,1727358427508,-331.54232593,0.00019018,2]
[339217744,1727358427528,-27753.31966468,0.0001905,2]
[339217748,1727358438111,-276.28527161,0.00019018,2]
[339217749,1727358438133,-20201.18755351,0.0001905,2]
[339217750,1727358438155,-366.67751789,0.00019062,2]
[339217751,1727358438177,-462.82,0.00019068,3]
[339217752,1727358438202,-500.0,0.00019073,2]
[339217753,1727358438224,-297.66165973,0.00019073,2]
[339217803,1727358635232,-2158.82774867,0.00018829,2]
[339217804,1727358635242,-725.07389297,0.00018968,2]
[339217805,1727358635251,-300.0,0.00019068,2]
[339217806,1727358635260,-614.09604929,0.00019068,2]
[339217807,1727358635270,-4316.45516007,0.00019069,3]
[339217818,1727358638276,-56172.00724213,0.00019069,3]
[339217819,1727358638286,-2447.70686537,0.00019069,3]
[339217820,1727358638294,-4523.27888479,0.00019069,2]
[339217842,1727358639979,-5454.43818959,0.00019069,2]
[339217843,1727358639988,-7556.56181041,0.00019069,2]
[339217875,1727359281986,270.0,0.00014111,2]
[339217891,1727359636123,-2500.0,0.000161,2]
[339217892,1727359636147,-425.21,0.000162,2]
[339217893,1727359636168,-166.666666,0.00017514,2]
[339217894,1727359636190,-166.666666,0.00017991,2]
[339217895,1727359636210,-166.666666,0.00018469,2]
[339217896,1727359636232,-300.0,0.00018799,2]
[339217897,1727359636254,-300.0,0.00018799,2]
[339217898,1727359636278,-6692.3739639,0.000188,2]
[339217899,1727359636301,-150.67504188,0.00018862,2]
[339217900,1727359636323,-166.666666,0.00018946,2]
[339217901,1727359636344,-195.0,0.00019,2]
[339217902,1727359636588,-152.68017911,0.00019,2]
[339217903,1727359636608,-230.23772634,0.00019072,2]
[339217904,1727359636629,-1042.49107369,0.00019078,2]
[339217905,1727359636649,-8497.62862156,0.0001915,2]
[339217909,1727359654103,-191.86477195,0.00019072,2]
[339217910,1727359654129,-191.86477195,0.00019149,2]
[339217911,1727359654149,-1731.56678314,0.0001915,2]
[339217949,1727359832302,-2516.64512693,0.00019137,2]
[339217985,1727359838493,-3816.35487307,0.00019137,2]
[339217986,1727359838503,-150.01,0.00019149,2]
[339217987,1727359838513,-300.0,0.00019149,2]
[339217988,1727359838523,-300.0,0.00019149,2]
[339217989,1727359838534,-4186.0362673,0.0001915,2]
[339217990,1727359838669,-5447.43086551,0.0001915,2]
[339217991,1727359838681,-18572.12254442,0.0001915,2]
[339217992,1727359838690,-151.0,0.00019178,2]
[339217993,1727359838700,-172.9148413,0.00019178,2]
[339217994,1727359838709,-172.147308,0.00019178,2]
[339217995,1727359838718,-287.232092,0.00019178,2]
[339217996,1727359838727,-173.938066,0.00019178,2]
[339217997,1727359838737,-912.17968947,0.00019324,2]
[339217998,1727359838745,-166.666666,0.00019424,2]
[339217999,1727359838755,-153.0,0.00019425,2]
[339218000,1727359838765,-6692.37396391,0.00019445,2]
[339218001,1727359838779,-151.0,0.00019452,2]
[339218002,1727359838789,-179.80582158,0.00019473,2]
[339218003,1727359838799,-501.00438688,0.00019473,2]
[339218004,1727359838808,-500.0,0.00019473,2]
[339218005,1727359838818,-500.0,0.00019473,2]
[339218006,1727359838828,-429.8672345,0.00019479,2]
[339218007,1727359838837,-4988.85853719,0.0001948,2]
[339218008,1727359838846,-8964.33396224,0.0001948,2]
[339218009,1727359838856,-114928.078564,0.0001948,3]
[339218010,1727359838865,-4650.64304416,0.0001948,3]
[339218011,1727359838874,-76.25909504,0.0001949,3]
[339218012,1727359838919,161.02932818,0.000141,2]
[339218013,1727359838942,246.00723709,0.000141,2]
[339218014,1727359838964,259.15402206,0.000141,2]
[339218015,1727359838986,27133.80941267,0.000141,2]
[339218053,1727359840488,-114145.79150679,0.0001949,3]
[339218088,1727360598628,255.71,0.00010959,2]
[339218089,1727360609458,500.0,0.00013972,2]
[339218090,1727360619373,462.82,0.00010959,2]
[339218092,1727360668290,248.444076,0.00013831,2]
[339218093,1727360668784,248.444076,0.00013869,2]
[339218094,1727360669033,248.444076,0.00013907,2]
[339218095,1727360669310,248.444076,0.00013945,2]
[339218096,1727360669561,248.444076,0.00013983,2]
[339218097,1727360669795,248.444076,0.00014021,2]
[339218098,1727360670400,248.444076,0.00014059,2]
[339218099,1727360670444,248.444076,0.00014097,2]
[339218101,1727360691745,716.17,0.00010959,2]
[339218102,1727360702298,596.81,0.00010959,2]
[339218121,1727360713011,497.34,0.00010959,2]
[339218127,1727360723570,414.45,0.00010959,2]
[339218131,1727360744938,345.37,0.00010959,2]
[339218132,1727360755470,287.81,0.00010959,2]
[339218133,1727360766047,239.84,0.00010959,2]
[339218134,1727360776585,199.87,0.00010959,2]
[339218135,1727360787316,166.56,0.00010959,2]
[339218137,1727360797832,832.82,0.00010959,2]
[339218139,1727360837972,250.0,0.00013379,2]
[339218140,1727360845167,-248.444076,0.00014135,2]
[339218141,1727360845189,-248.444076,0.00014173,2]
[339218142,1727360845212,-248.444076,0.00014211,2]
[339218143,1727360845234,-174.6172807,0.00014231,2]
[339218144,1727360845256,-248.444076,0.00014249,2]
[339218145,1727360845279,-248.444076,0.00014287,2]
[339218146,1727360845304,-300.0,0.00014314,2]
[339218147,1727360845326,-300.0,0.00014314,2]
[339218148,1727360845348,-24900.0,0.00014315,2]
[339218149,1727360845370,-500.0,0.00014324,2]
[339218150,1727360845392,-248.444076,0.00014324,2]
[339218151,1727360845415,-248.444076,0.00014362,2]
[339218152,1727360845437,-248.444076,0.000144,2]
[339218153,1727360845457,-156.30471802,0.00014414,2]
[339218154,1727360845479,-248.444076,0.00014438,2]
[339218155,1727360845501,-248.444076,0.00014476,2]
[339218156,1727360845524,-248.444076,0.00014514,2]
[339218157,1727360845550,-248.444076,0.00014552,2]
[339218158,1727360845570,-3000.0,0.00014655,2]
[339218159,1727360845590,-238.63439176,0.00014867,2]
[339218160,1727360845612,-500.0,0.00014966,2]
[339218161,1727360845633,-500.0,0.00014966,2]
[339218162,1727360845657,-500.0,0.00014966,2]
[339218163,1727360845679,-500.0,0.00014966,2]
[339218164,1727360845701,-500.0,0.00014966,2]
[339218165,1727360845728,-500.0,0.00014966,2]
[339218166,1727360845749,-500.0,0.00014966,2]
[339218167,1727360845770,-500.0,0.00014966,2]
[339218168,1727360845795,-500.0,0.00014966,2]
[339218169,1727360845818,-500.0,0.00014966,2]
[339218170,1727360845839,-347.41680406,0.00014966,2]
[339218171,1727360845862,-205.92799817,0.00014966,2]
[339218172,1727360845883,-305.18444765,0.00014966,2]
[339218173,1727360845907,-500.0,0.00014966,2]
[339218174,1727360845930,-500.0,0.00014966,2]
[339218175,1727360845952,-500.0,0.00014966,2]
[339218176,1727360845974,-500.0,0.00014966,2]
[339218177,1727360845998,-500.0,0.00014966,2]
[339218178,1727360846022,-500.0,0.00014966,2]
[339218179,1727360846049,-500.0,0.00014966,2]
[339218180,1727360846070,-500.0,0.00014966,2]
[339218181,1727360846092,-483.72860051,0.00014966,2]
[339218182,1727360846116,-500.0,0.00014966,2]
[339218183,1727360846139,-500.0,0.00014966,2]
[339218184,1727360846163,-500.0,0.00014966,2]
[339218185,1727360846186,-500.0,0.00014966,2]
[339218186,1727360846209,-500.0,0.00014966,2]
[339218187,1727360846232,-500.0,0.00014966,2]
[339218188,1727360846255,-500.0,0.00014966,2]
[339218189,1727360846278,-500.0,0.00014966,2]
[339218190,1727360846306,-500.0,0.00014966,2]
[339218191,1727360846329,-500.0,0.00014966,2]
[339218192,1727360846352,-500.0,0.00014966,2]
[339218193,1727360846375,-500.0,0.00014966,2]
[339218194,1727360846399,-500.0,0.00014966,2]
[339218195,1727360846421,-500.0,0.00014966,2]
[339218196,1727360846444,-500.0,0.00014966,2]
[339218197,1727360846466,-500.0,0.00014966,2]
[339218198,1727360846488,-500.0,0.00014966,2]
[339218199,1727360846510,-500.0,0.00014966,2]
[339218200,1727360846538,-500.0,0.00014966,2]
[339218201,1727360846561,-500.0,0.00014966,2]
[339218202,1727360846583,-500.0,0.00014966,2]
[339218203,1727360846607,-500.0,0.00014966,2]
[339218204,1727360846629,-500.0,0.00014966,2]
[339218205,1727360846656,-500.0,0.00014966,2]
[339218206,1727360846681,-500.0,0.00014966,2]
[339218207,1727360846704,-500.0,0.00014966,2]
[339218208,1727360846729,-500.0,0.00014966,2]
[339218209,1727360846751,-500.0,0.00014966,2]
[339218210,1727360846773,-500.0,0.00014966,2]
[339218211,1727360846801,-500.0,0.00014966,2]
[339218212,1727360846823,-576.59150392,0.00014966,2]
[339218213,1727360846847,-500.0,0.00014966,2]
[339218214,1727360846869,-500.0,0.00014966,2]
[339218215,1727360846892,-500.0,0.00014966,2]
[339218216,1727360846916,-500.0,0.00014966,2]
[339218217,1727360846940,-500.0,0.00014966,2]
[339218218,1727360846962,-500.0,0.00014966,2]
[339218219,1727360846986,-500.0,0.00014966,2]
[339218220,1727360847010,-500.0,0.00014966,2]
[339218221,1727360847037,-500.0,0.00014966,2]
[339218222,1727360847060,-500.0,0.00014966,2]
[339218223,1727360847081,-500.0,0.00014966,2]
[339218224,1727360847103,-500.0,0.00014966,2]
[339218225,1727360847124,-500.0,0.00014966,2]